[Event "FIDE Zonal 4-2 Open 2023"]
[Site "Dimbroko"]
[Date "2023.03.31"]
[Round "9.5"]
[White "Manan, Yoboue Hermann"]
[Black "Thomas, Saah"]
[Result "1-0"]
[ECO "B30"]
[WhiteElo "2015"]
[BlackElo "1916"]
[Annotator "TA"]
[PlyCount "141"]
[EventDate "2023.03.25"]
[EventType "swiss"]
[EventCountry "IVO"]
[SourceTitle "playchess.com"]
[Source "ChessBase"]
[SourceQuality "1"]
[TimeControl "40/5400+30:1800+30"]

{[%evp 9,141,41,46,53,64,60,56,56,72,58,55,54,68,63,99,109,298,291,313,304,412,269,279,279,274,275,276,277,267,148,150,170,289,231,237,240,286,286,297,279,282,279,282,268,339,328,332,302,406,318,327,288,353,337,360,342,371,295,385,322,403,397,400,389,387,369,380,372,433,427,426,374,425,416,426,423,410,395,464,179,172,159,415,314,283,152,252,237,281,308,291,226,234,233,210,211,350,371,313,302,490,490,471,469,1181,1170,1728,1730,6016,5135,11200,6041,29979,29980,29980,29981,29981,29981,29981,29982,29983,29984,29984,29985,29985,29984,29985,29986,29987,29988,29988,29988,29990,29991]} 1. e4 {[%emt 0:00:45]} c5 {[%emt 0:00:03]} 2. Nf3 {[%emt 0:00:21]} Nc6 {[%emt 0:00:11]} 3. Bb5 {[%emt 0:00:22]} Nd4 {[%emt 0:00:26]} 4. Nxd4 {[%emt 0:00:08]} cxd4 {[%emt 0:00:05]} 5. O-O {[%emt 0:00:24]} a6 {[%emt 0:00:02]} 6. Ba4 {[%emt 0:00:18] B30: Sicilian: 2...Nc6 3 Bb5, lines without ...g6.} g6 {[%emt 0:00:17]} 7. d3 {[%emt 0:00:29]} Bg7 {[%emt 0:00:16]} 8. Nd2 {[%emt 0:02:08] White is slightly better.} b5 {[%emt 0:00:03]} 9. Bb3 {[%emt 0:00:17]} Bb7 {[%emt 0:00:09] [#]} 10. Qg4 $146 {[%emt 0:00:54][%mdl 128] White mounts an attack.} ({Predecessor:} 10. f4 e6 11. Nf3 d5 12. e5 Qb6 13. Bd2 Ne7 14. Qe2 a5 15. a4 b4 16. Qf2 {0-1 Becker Bertau,F (1911)-Stuhlmann,A (1839) Hamburg-ch MB 2014 (4)}) 10... Nf6 {[%emt 0:00:28]} 11. Qh4 {[%emt 0:00:21]} e5 {[%emt 0:00:35]} 12. f4 {[%emt 0:05:51]} d6 {[%emt 0:02:28]} (12... d5 $16) 13. fxe5 $18 {[%emt 0:00:38]} dxe5 {[%emt 0:00:02]} 14. Nf3 {[%emt 0:00:35][%cal Bd2f3,Bf3g5,Bg5e6][%mdl 32]} Nd7 {[%emt 0:07:09]} 15. Qxd8+ {[%emt 0:23:26]} Kxd8 {[%emt 0:01:36]} 16. Ng5 {[%emt 0:03:48]} ({Don't take} 16. Bxf7 $6 Kc7 17. a4 Kb6 $18) 16... f6 {[%emt 0:03:26]} 17. Ne6+ {[%emt 0:00:39]} Ke7 {[%emt 0:00:02]} 18. Nxg7 {[%emt 0:00:14]} Nc5 {[%emt 0:00:16]} 19. Bd5 {[%emt 0:04:21]} (19. Bh6 $18) 19... Bxd5 $16 {[%emt 0:00:41]} 20. exd5 {[%emt 0:00:05]} Rhg8 {[%emt 0:00:58]} (20... Rad8 $142 21. Bh6 Rxd5) 21. Ne6 {[%emt 0:00:51]} Nxe6 {[%emt 0:00:02]} 22. dxe6 {[%emt 0:00:10]} Kxe6 {[%emt 0:00:07]} 23. Bd2 {[%emt 0:00:42]} Rac8 {[%emt 0:01:26]} 24. Rac1 {[%emt 0:01:23]} Rgd8 {[%emt 0:00:16]} 25. Ba5 {[%emt 0:02:16]} Rd5 {[%emt 0:00:57]} 26. Rf2 {[%emt 0:01:33]} f5 {[%emt 0:00:06]} 27. Re1 {[%emt 0:00:55]} Rb8 {[%emt 0:00:50]} 28. a3 {[%emt 0:04:44]} g5 {[%emt 0:01:25]} 29. Ref1 {[%emt 0:01:04]} f4 {[%emt 0:00:14]} 30. g3 {[%emt 0:00:43]} Rg8 {[%emt 0:00:47]} 31. gxf4 {[%emt 0:00:51]} gxf4+ {[%emt 0:01:11]} 32. Rg2 {[%emt 0:00:28]} Rg6 {[%emt 0:00:08]} 33. Kf2 {[%emt 0:00:32]} Rc5 {[%emt 0:00:15]} 34. c3 {[%emt 0:03:29] Threatens to win with Rxg6+.} Rd5 {[%emt 0:00:35]} 35. Rxg6+ {[%emt 0:02:38]} hxg6 $18 {[%emt 0:00:01][%mdl 4096] Endgame KRB-KR} 36. Ke2 {[%emt 0:00:22]} g5 {[%emt 0:00:16]} 37. h3 {[%emt 0:01:11]} Kf5 {[%emt 0:00:16]} 38. cxd4 {[%emt 0:04:36]} Rxd4 {[%emt 0:00:23]} 39. Bc3 {[%emt 0:00:39]} Rd5 {[%emt 0:00:35]} 40. Rh1 {[%emt 0:01:16]} Rd7 {[%emt 0:00:30]} 41. Re1 {[%emt 0:33:34]} Rh7 {[%emt 0:30:54]} 42. Kf2 {[%emt 0:01:07]} Rxh3 {[%emt 0:00:08]} 43. Rxe5+ {[%emt 0:00:37]} Kg4 {[%emt 0:00:04]} 44. Rd5 {[%emt 0:00:55]} (44. d4 Rh2+ 45. Kg1) 44... Rh2+ {[%emt 0:00:49]} 45. Kg1 {[%emt 0:00:59]} Rh6 {[%emt 0:06:02] This move loses the game for Black.} (45... Rc2 $16 {might work better.} 46. Bd4 Rc1+ 47. Kf2 Rc2+ 48. Ke1 f3) 46. Bb4 {[%emt 0:00:12]} Re6 {[%emt 0:00:28] [#]} 47. Kf2 {[%emt 0:01:39] Prevents Re2+.} (47. d4 $1 $18) 47... Re3 {[%emt 0:02:30]} (47... Rh6 $16 {was called for.}) 48. Bc5 {[%emt 0:02:45]} Rf3+ {[%emt 0:00:43]} 49. Ke2 {[%emt 0:00:21][%cal Od5g5] Rxg5+! would kill now.} Rh3 {[%emt 0:00:18]} 50. Bf2 {[%emt 0:02:39] Re5 would be deadly.} Rh1 {[%emt 0:00:34]} 51. Rc5 {[%emt 0:00:51] And now d4 would win.} Rb1 {[%emt 0:00:29]} 52. Rc2 {[%emt 0:00:11]} Rh1 {[%emt 0:02:12]} (52... Kf5 {is a better defense.} 53. Bd4 Kg4) 53. d4 {[%emt 0:05:05][%cal Bd3d4,Bd4d5,Bd5d6][%mdl 32]} Rh8 {[%emt 0:00:49]} 54. d5 {[%emt 0:18:41]} Rd8 {[%emt 0:00:53]} (54... Kf5 55. d6 Ke6) 55. Rd2 {[%emt 0:00:17]} Re8+ {[%emt 0:00:17]} 56. Kd3 {[%emt 0:00:40]} Kf3 {[%emt 0:00:17]} (56... Kf5 $142 57. d6 Rd8) 57. Bb6 {[%emt 0:00:59] [#] Black must now prevent d6.} Re7 {[%emt 0:04:23]} 58. Kd4 {[%emt 0:00:00]} g4 {[%emt 0:00:00]} 59. d6 {[%emt 0:00:00]} Rf7 {[%emt 0:00:00]} 60. Ke5 {[%emt 0:00:00] Threatening mate with d7.} g3 {[%emt 0:00:00]} 61. d7 {[%emt 0:00:00] White mates.} Re7+ {[%emt 0:00:00]} 62. Kd6 {[%emt 0:00:00]} Rxd7+ {[%emt 0:00:00]} 63. Kxd7 {[%emt 0:00:00]} Ke4 {[%emt 0:00:00]} 64. Kc7 {[%emt 0:00:00]} a5 {[%emt 0:00:00]} 65. Kc6 {[%emt 0:00:00]} b4 {[%emt 0:00:00]} 66. axb4 {[%emt 0:00:00]} axb4 {[%emt 0:00:00]} 67. Kb5 {[%emt 0:00:00]} f3 {[%emt 0:00:00]} 68. Kxb4 {[%emt 0:00:00]} Kf4 {[%emt 0:00:00]} 69. Kc4 {[%emt 0:00:00]} Kg4 {[%emt 0:00:00]} 70. Bd4 {[%emt 0:00:00]} g2 {[%emt 0:00:00]} 71. Bg1 {[%emt 0:00:00] Weighted Error Value: White=0.27 (precise) /Black=0.50} 1-0

[Event "FIDE Zonal 4-2 Open 2023"]
[Site "Dimbroko"]
[Date "2023.03.31"]
[Round "9.6"]
[White "Egbe, Kossi Thierry"]
[Black "Barcon, Harmon"]
[Result "1/2-1/2"]
[ECO "C41"]
[WhiteElo "1740"]
[BlackElo "1928"]
[Annotator "TA"]
[PlyCount "109"]
[EventDate "2023.03.25"]
[EventType "swiss"]
[EventCountry "IVO"]
[SourceTitle "playchess.com"]
[Source "ChessBase"]
[SourceQuality "1"]
[TimeControl "40/5400+30:1800+30"]

{[%evp 9,109,8,10,-4,-8,-11,0,0,0,-73,47,-77,0,0,4,0,0,-77,-66,-108,-90,-156,-151,-167,-126,-125,-89,-91,-80,-82,-79,-82,-61,-77,-56,-49,-52,-63,-6,-63,-61,-68,-52,-66,-55,-77,-72,-106,-91,-103,-8,-19,-8,-8,-8,-6,-7,-41,-41,-36,-29,-25,-24,-24,-29,-43,-43,-57,-85,-80,-31,-252,-252,-243,-235,-578,-511,-556,-218,-29956,-29958,-29949,-29950,-29958,-29960,-29955,-8,-8,-8,-8,-8,-8,-8,-8,-8,-8,-8,-8,-8,-8,-8,-8]} 1. e4 {[%emt 0:00:25]} e5 {[%emt 0:00:05]} 2. Nf3 {[%emt 0:00:23]} d6 {[%emt 0:00:06]} 3. Bc4 {[%emt 0:01:51]} Be7 {[%emt 0:00:12]} 4. c3 {[%emt 0:00:17]} Nf6 {[%emt 0:00:02]} 5. Qe2 {[%emt 0:00:20]} Bg4 {[%emt 0:00:45]} 6. d4 {[%emt 0:01:46] [#] C41: Philidor Defence.} exd4 $146 {[%emt 0:01:23]} ({Predecessor:} 6... O-O 7. O-O Nbd7 8. Bg5 c6 9. a4 d5 10. Bd3 exd4 11. e5 Bxf3 12. gxf3 Nh5 {0-1 Krynicki,H (2076)-Jelen,J (2043) POL-chT blind Gp-B 2011 (1.1)}) 7. cxd4 {[%emt 0:00:46]} O-O {[%emt 0:00:04]} 8. Nc3 {[%emt 0:00:39]} Nc6 {[%emt 0:00:08]} 9. Be3 {[%emt 0:00:56]} (9. Qe3 $1 $11) 9... a6 {[%emt 0:00:04]} (9... Nxe4 $1 $17 10. Nxe4 d5) 10. a4 {[%emt 0:01:23] [#]} (10. h3 $14 {stays ahead.} Bh5 11. Bd3) 10... Re8 {[%emt 0:00:39]} (10... Nxe4 $1 $17 {...Ng5 would be deadly.} 11. O-O (11. Nxe4 d5 $17) 11... Bf5) 11. h3 $11 {[%emt 0:05:56]} Bh5 {[%emt 0:00:24][%cal Of6e4]} 12. g4 {[%emt 0:01:23]} Bg6 {[%emt 0:00:06]} 13. Nd2 {[%emt 0:00:11]} (13. e5 $1 $11 {remains equal.} Ne4 14. O-O) 13... Nb4 {[%emt 0:00:44] aiming for ...Nc2+.} 14. Rc1 {[%emt 0:04:04] Prevents Nc2+.} d5 {[%emt 0:00:33]} 15. Bxd5 {[%emt 0:03:29]} (15. exd5 $142 Nfxd5 16. O-O) 15... Nfxd5 $17 {[%emt 0:00:14]} 16. Nxd5 {[%emt 0:00:29]} Nxd5 {[%emt 0:00:17]} 17. exd5 {[%emt 0:00:09]} Qxd5 {[%emt 0:00:43]} 18. O-O {[%emt 0:00:39]} Qd7 {[%emt 0:05:42]} 19. Qf3 {[%emt 0:15:31]} c6 {[%emt 0:01:41]} (19... Qxa4 20. Rxc7 Rab8 21. Rxb7 $11) 20. Nc4 {[%emt 0:01:02]} Qe6 {[%emt 0:03:57]} 21. Ne5 {[%emt 0:00:47] Prevents Bd3} Bd6 {[%emt 0:00:14]} 22. Nxg6 {[%emt 0:02:46]} fxg6 {[%emt 0:00:15]} (22... Qxg6 23. d5 $11) 23. Rfd1 {[%emt 0:03:04]} Rf8 {[%emt 0:00:22]} (23... Rad8 $1 $15) 24. Qg2 {[%emt 0:00:12]} (24. d5 $1 $11 Qe7 25. Qg2) 24... Rad8 $15 {[%emt 0:00:46]} 25. Rd3 {[%emt 0:02:59] Wards off Qb3} Bb8 {[%emt 0:01:42]} 26. Rcd1 {[%emt 0:00:56]} Rd5 {[%emt 0:00:48]} 27. b3 {[%emt 0:04:56]} h5 {[%emt 0:02:34]} 28. b4 {[%emt 0:05:40]} Bd6 {[%emt 0:00:43]} 29. Rb1 {[%emt 0:00:56]} Qe7 {[%emt 0:00:51]} (29... Kh7 $17) 30. b5 $1 $11 {[%emt 0:03:05][%mdl 64] Decoy} axb5 {[%emt 0:00:13]} 31. axb5 {[%emt 0:00:11]} Rxb5 {[%emt 0:01:14]} 32. Rxb5 {[%emt 0:00:10]} cxb5 {[%emt 0:00:15]} 33. Qd5+ {[%emt 0:01:02]} Kh7 {[%emt 0:00:03]} 34. gxh5 {[%emt 0:01:55]} (34. Qxb5 hxg4 35. Qg5 Qxg5 36. Bxg5 Rf3 $17) 34... Rf5 {[%emt 0:00:36]} 35. hxg6+ {[%emt 0:01:14]} Kxg6 {[%emt 0:00:05]} 36. Qg2+ {[%emt 0:04:11]} Kh7 {[%emt 0:00:00]} 37. Qg4 {[%emt 0:01:17]} Qf7 {[%emt 0:05:39]} 38. Rc3 {[%emt 0:03:38]} b4 {[%emt 0:02:34]} 39. Rd3 {[%emt 0:08:25]} (39. Rc8 b3 40. Rc1 Kg8 $17) 39... Rf6 {[%emt 0:00:18]} ({Black should try} 39... Bf8 $17) 40. d5 $2 {[%emt 0:02:44] [#]} (40. Qe4+ $15 Rf5 41. Kf1) 40... Rg6 $1 $19 {[%emt 0:00:43]} (40... Qg6 41. Rd1 $15) 41. Bg5 {[%emt 0:30:16]} b3 $1 {[%emt 0:31:42]} 42. Qh5+ $2 {[%emt 0:01:30]} ({But not} 42. Rxb3 Qxd5 43. h4 (43. Qh5+ $2 Rh6 $19 {[%mdl 64] Pin}) 43... Qxb3 $19) (42. h4 Bc5 43. Rd2) 42... Kg8 {[%emt 0:00:40] Threatens to win with ...Qf5.} 43. Rxb3 {[%emt 0:01:24]} Bf4 $2 {[%emt 0:04:01]} (43... Bc5 44. Re3 (44. Rb2 $2 Qf6 $19) 44... Bxe3 45. fxe3 Qf5) 44. Rxb7 $2 {[%emt 0:01:21]} (44. Kf1 $19 Rxg5 45. Qxf7+ Kxf7 46. Rxb7+ Kf6 47. Rb6+ Ke5 48. Rb4) 44... Rxg5+ {[%emt 0:00:14]} 45. Qxg5 {[%emt 0:00:43]} Bxg5 {[%emt 0:00:02]} 46. Rxf7 {[%emt 0:00:25]} Kxf7 {[%emt 0:00:02] KB-K3P} 47. Kg2 {[%emt 0:00:48]} Ke7 $2 {[%emt 0:00:02]} (47... Kg6 {mates} 48. d6 Kf5 49. Kf3 Bf6 50. d7 Bh4 51. Ke3 Ke6 52. Kf4 Kxd7 53. f3 Bd8 54. Kg4 Ke7 55. h4 Kf7 56. Kh5 Bf6 57. f4 Kg8 58. Kg4 Kh7 59. Kh5 Bd8 60. Kg4 Kh6 61. Kh3 Kh5 62. Kg2 Bxh4 63. Kf3 g6 64. Ke4 Kg4 65. Ke3 Bg3 66. Ke2 Kxf4 67. Kd2 g5 68. Kc2 g4 69. Kd3 Bh4 70. Kd4 g3 71. Kd5 g2 72. Kd6 g1=Q 73. Kc7 Qc5+ 74. Kb7 Qd6 75. Ka7 Qc6 76. Kb8 Qd7 77. Ka8 Qc8+ 78. Ka7 Bf2#) 48. Kg3 $1 $11 {[%emt 0:00:20] The position is equal.} Kd6 {[%emt 0:00:12]} 49. Kg4 {[%emt 0:00:21]} Bh6 {[%emt 0:00:29]} 50. Kf5 {[%emt 0:00:31]} Kxd5 {[%emt 0:00:35] ( -> ...Kd4)} 51. f4 {[%emt 0:01:11][%cal Bf2f4,Bf4f5][%mdl 32]} Kd6 {[%emt 0:06:52]} (51... Kd4 $5 52. Kg6 $8 Ke3 $11) 52. Kg6 {[%emt 0:00:22]} Ke6 {[%emt 0:05:20]} 53. f5+ {[%emt 0:00:48]} Ke5 {[%emt 0:00:28]} 54. h4 $1 {[%emt 0:01:56]} (54. f6 {is a self mate.} gxf6 55. Kxh6 f5 56. Kh5 f4 57. Kg4 Ke4 58. h4 f3 59. Kh3 Ke3 60. Kg4 f2 61. Kf5 f1=Q+ 62. Ke6 Qh3+ 63. Kf6 Qxh4+ 64. Ke6 Kd4 65. Kf5 Kd5 66. Kg6 Ke6 67. Kg7 Qg5+ 68. Kf8 Qg4 69. Ke8 Qg8#) 54... Be3 {[%emt 0:03:36]} 55. h5 {[%emt 0:14:17] Whites escaped into a draw. An exciting game.   Weighted Error Value: White=0.51/Black=0.33} 1/2-1/2

[Event "FIDE Zonal 4-2 Open 2023"]
[Site "Dimbroko"]
[Date "2023.03.31"]
[Round "9.7"]
[White "Bobby Ballah"]
[Black "David Leroy Debblay"]
[Result "1-0"]
[ECO "C17"]
[WhiteElo "1914"]
[BlackElo "1823"]
[Annotator "TA"]
[PlyCount "133"]
[EventDate "2023.03.25"]
[EventType "swiss"]
[EventCountry "IVO"]
[SourceTitle "playchess.com"]
[Source "ChessBase"]
[SourceQuality "1"]
[TimeControl "40/5400+30:1800+30"]

{[%evp 9,133,-13,-6,-76,-75,-72,-60,-174,-66,-62,-45,-39,0,-1,0,0,2,0,29,0,10,-43,20,0,7,4,47,-9,-10,-18,-5,0,35,50,80,76,98,80,78,64,66,8,9,20,21,31,48,0,5,7,17,8,8,8,40,0,31,32,106,19,19,19,19,19,19,0,0,0,19,23,34,34,76,89,246,481,900,798,901,703,1227,1228,929,8,8,8,305,245,245,251,255,255,137,0,29975,29976,29976,29977,29977,29978,29978,29978,29978,29979,29979,29980,29984,29985,29986,29987,29988,29989,29989,29990,29990,29986,29986,29987,29987,0,592,0,29990,29991,29991,29992]} 1. e4 {[%emt 0:00:57]} e6 {[%emt 0:01:10]} 2. d4 {[%emt 0:00:09]} d5 {[%emt 0:00:09]} 3. Nc3 {[%emt 0:00:05]} Bb4 {[%emt 0:00:30]} 4. e5 {[%emt 0:00:20]} c5 {[%emt 0:00:17]} 5. Qg4 {[%emt 0:01:07]} Ne7 {[%emt 0:00:51]} (5... cxd4 $2 6. Qxg7 dxc3 7. b3 $18 (7. Qxh8 $2 cxb2+ {[%mdl 64] Discovered Attack} 8. Kd1 bxa1=Q $19)) 6. Bd2 {[%emt 0:03:34] C17: French: 3 Nc3 Bb4 4 e5 c5 sidelines.} (6. Qxg7 Rg8 7. Qxh7 (7. Bb5+ $2 Bd7 $19) 7... cxd4 $17) (6. dxc5 $11 {keeps the balance.} Nbc6 7. Bd2 (7. Qxg7 Rg8 $17)) 6... cxd4 $1 $17 {[%emt 0:00:20]} 7. Qxd4 {[%emt 0:00:16]} (7. Qxg7 $2 Rg8 8. Qxh7 (8. Bb5+ $2 Bd7 $19) 8... dxc3 9. bxc3 Qc7 $19) (7. Bb5+ Nbc6 8. Qxd4 O-O) 7... Nbc6 {[%emt 0:00:05]} 8. Bb5 {[%emt 0:00:03]} ({White should play} 8. Qg4 $15) 8... Bd7 {[%emt 0:00:17]} (8... O-O $19 9. Qh4 Qb6) 9. Bxc6 $15 {[%emt 0:00:38]} Nxc6 {[%emt 1:31:21]} 10. Qg4 {[%emt 1:28:21] [#]} Bxc3 $146 {[%emt 0:00:00]} (10... Nxe5 $2 11. Qxb4 Nc4 12. Nf3 $18) ({Predecessor:} 10... Qc7 11. Nf3 Bxc3 12. Bxc3 O-O 13. O-O Ne7 14. Rad1 Ng6 15. Rfe1 a5 16. Re3 Ra6 {1-0 Beinenson,K (1985)-Aleshko,M (1405) BLR-chB (Women) 2020 (1)}) 11. Bxc3 {[%emt 0:00:00]} O-O {[%emt 0:00:00][%cal Od5d4]} 12. Nf3 {[%emt 0:00:00]} Ne7 {[%emt 0:00:00] Black is weak on the dark squares} 13. O-O {[%emt 0:00:00]} Ng6 {[%emt 0:02:00]} 14. h4 {[%emt 0:00:00]} h6 {[%emt 0:00:00]} 15. Bd2 {[%emt 0:00:00]} (15. Bb4 $11) 15... Kh7 {[%emt 0:01:00]} (15... Rc8 $1 $15) 16. Qh5 {[%emt 0:00:00]} Qc7 {[%emt 0:00:00]} 17. Rac1 {[%emt 0:00:00]} f6 {[%emt 0:00:00][%cal Rg6e5]} 18. exf6 {[%emt 0:00:00]} (18. Rfe1 $14) 18... Rxf6 $11 {[%emt 0:00:00] Black wants to play ...Raf8.} 19. Bc3 {[%emt 0:00:00] Ng5+ is the strong threat.} Nf4 {[%emt 0:00:00]} 20. Be5 $1 {[%emt 0:00:00]} Nxh5 {[%emt 0:00:00]} 21. Bxc7 {[%emt 0:00:00]} Bc6 {[%emt 0:00:00]} 22. Rfe1 {[%emt 0:00:00]} Re8 {[%emt 0:00:00]} 23. Rcd1 {[%emt 0:00:00]} Nf4 {[%emt 0:00:00][%cal Of4g2]} 24. Bxf4 {[%emt 0:00:00]} Rxf4 {[%emt 0:04:30]} 25. Re5 {[%emt 0:00:00]} (25. Re3 $14) 25... Kg6 {[%emt 0:00:30]} 26. Rde1 {[%emt 0:08:00]} Kf6 {[%emt 0:00:00]} 27. c3 {[%emt 0:00:00]} Rf5 {[%emt 0:00:00]} 28. Rxf5+ {[%emt 0:00:00]} (28. R5e3 $14) 28... Kxf5 $14 {[%emt 0:00:00][%mdl 4096] Endgame KRB-KRN} 29. Ne5 {[%emt 0:00:00]} g5 {[%emt 0:00:00]} 30. hxg5 {[%emt 0:00:00]} hxg5 {[%emt 0:00:00]} 31. f3 {[%emt 0:00:00]} a5 {[%emt 0:00:00]} 32. b3 {[%emt 0:00:00]} Rd8 {[%emt 0:00:00]} 33. Kf2 {[%emt 0:00:00]} d4 {[%emt 0:00:00]} ({Black should try} 33... a4 $14) 34. g4+ {[%emt 0:00:00]} (34. Nf7 $16 Rd7 35. Nh6+ Kf6 36. c4 (36. Ng4+ Ke7 $16)) 34... Kf6 $11 {[%emt 0:00:00]} 35. Nxc6 {[%emt 0:00:00]} bxc6 {[%emt 0:00:00]} 36. cxd4 {[%emt 0:00:00]} Rxd4 {[%emt 0:00:00] KR-KR} 37. Re2 {[%emt 0:00:00]} (37. Ke3 $5 {[%cal Re3d4]} Rf4 38. Rc1 $14) 37... a4 {[%emt 0:00:00]} 38. Ke3 {[%emt 0:00:00]} e5 {[%emt 0:00:00]} 39. Rc2 {[%emt 0:00:00]} axb3 {[%emt 0:00:00]} 40. Rxc6+ {[%emt 0:00:00]} Kf7 {[%emt 0:00:00]} 41. axb3 {[%emt 0:00:00]} Rd1 $2 {[%emt 0:00:00]} (41... Rb4 $16 {was necessary.}) 42. b4 $2 {[%emt 0:00:00]} (42. Ke4) 42... Rb1 {[%emt 0:00:00]} (42... Rd5 $142 43. Rc5 Rd4 44. Rxe5 (44. b5 Ke6 $16) 44... Rxb4 45. Rxg5 Rb3+ 46. Kf2 Rb2+ 47. Kg3 Rb3 48. Rf5+ Kg6) 43. Rb6 $18 {[%emt 0:00:00]} Ke7 {[%emt 0:00:00]} 44. Ke4 {[%emt 0:00:00]} Re1+ {[%emt 0:00:00]} 45. Kf5 {[%emt 0:00:00]} Re3 {[%emt 0:00:00]} 46. Kxg5 $2 {[%emt 0:00:00]} (46. Re6+ $18 Kf7 47. Rxe5 Rxf3+ 48. Kxg5) 46... Rxf3 $11 {[%emt 0:00:00]} 47. Rb5 {[%emt 0:00:00]} Re3 {[%emt 0:00:00][%mdl 8192]} (47... Ke6 $11) 48. Kf5 {[%emt 0:00:00]} Kd6 {[%emt 0:00:00]} 49. g5 $1 {[%emt 0:00:00] And now g6 would win.} Rf3+ {[%emt 0:00:00] [#]} 50. Kg4 $1 {[%emt 0:00:00]} e4 {[%emt 0:00:00] [#]} (50... Rf2 $18 51. Rb8 Rg2+ 52. Kf5 e4) 51. g6 {[%emt 0:00:00]} (51. Rb8 $1 $16 {[%cal Rb8e8]}) 51... Rf8 {[%emt 0:00:00][%mdl 8192] White now steadily converts the win.} (51... Rf1 $11) 52. g7 {[%emt 0:00:00]} Rg8 {[%emt 0:00:00]} 53. Rg5 {[%emt 0:00:00]} Ke7 {[%emt 0:00:00]} 54. Kf4 {[%emt 0:00:00]} Kf7 {[%emt 0:00:00]} 55. Kxe4 {[%emt 0:00:00]} Re8+ {[%emt 0:00:00]} 56. Kd5 {[%emt 0:00:00]} Kg8 {[%emt 0:00:00]} 57. b5 {[%emt 0:00:00][%cal Bb4b5,Bb5b6,Bb6b7][%mdl 32]} Rc8 {[%emt 0:00:00]} 58. b6 {[%emt 0:00:00]} Rc1 {[%emt 0:00:00]} 59. b7 {[%emt 0:00:00]} Rb1 {[%emt 0:00:00]} 60. Kc6 {[%emt 0:00:00]} Rc1+ {[%emt 0:00:00]} 61. Kb6 {[%emt 0:00:00]} Rb1+ {[%emt 0:00:00]} 62. Kc7 {[%emt 0:00:00]} Rc1+ {[%emt 0:00:00]} 63. Kb8 {[%emt 0:00:00]} Re1 {[%emt 0:00:00]} 64. Kc7 {[%emt 0:00:00]} (64. Rg6 $142 Rb1 65. Rg5 Re1 66. Ka7 Ra1+ 67. Kb6 Rb1+ 68. Rb5 Rxb5+ 69. Kxb5) 64... Rc1+ $18 {[%emt 0:00:00]} 65. Kb6 {[%emt 0:00:00]} (65. Rc5 $18 Rxc5+ 66. Kb6) 65... Rb1+ {[%emt 0:00:00]} 66. Rb5 {[%emt 0:00:00]} Rxb5+ {[%emt 0:00:00]} 67. Kxb5 {[%emt 0:00:00] Weighted Error Value: White=0.27 (precise) /Black=0.40} 1-0

[Event "FIDE Zonal 4-2 Open 2023"]
[Site "Dimbroko"]
[Date "2023.03.31"]
[Round "9.8"]
[White "De Gondo, Simplice Armel"]
[Black "Harold Evans"]
[Result "1-0"]
[ECO "A10"]
[WhiteElo "2086"]
[BlackElo "1714"]
[Annotator "TA"]
[PlyCount "57"]
[EventDate "2023.03.25"]
[EventType "swiss"]
[EventCountry "IVO"]
[SourceTitle "playchess.com"]
[Source "ChessBase"]
[SourceQuality "1"]
[TimeControl "40/5400+30:1800+30"]

{[%evp 9,57,44,127,81,97,71,120,74,82,75,99,92,217,118,168,150,158,154,311,311,304,310,310,287,289,298,290,270,262,251,260,254,252,155,137,58,220,212,258,264,260,243,614,581,564,558,948,948,1377,1316]} 1. c4 {[%emt 0:00:02]} d5 {[%emt 0:00:11]} 2. cxd5 {[%emt 0:00:03]} Qxd5 {[%emt 0:00:22]} 3. Nc3 {[%emt 0:00:01]} Qh5 {[%emt 0:00:19]} 4. Qb3 {[%emt 0:01:08]} c6 {[%emt 0:00:28] [#]} 5. d4 $146 {[%emt 0:00:03]} ({Predecessor:} 5. Nf3 g6 6. e3 Bg7 7. Be2 Nh6 8. d4 Qg4 9. h3 Qe6 10. d5 Bxc3+ 11. Qxc3 {1-0 Chapman,P (1655)-Brenton,R Torquay Bloodworth op 2019 (5)}) 5... e6 {[%emt 0:01:19]} ({Better is} 5... e5 $14) 6. Bf4 {[%emt 0:00:11] A10: English Opening: Unusual Replies for Black.} (6. Nf3 $142) 6... Nf6 {[%emt 0:00:49]} 7. e4 {[%emt 0:00:03]} Be7 {[%emt 0:01:11]} (7... Nbd7 $142) 8. Be2 {[%emt 0:02:39]} ({White should play} 8. Nf3) 8... Qg6 $16 {[%emt 0:00:13][%csl LRe4,LRg2]} 9. Bf3 {[%emt 0:00:28] White is more active.} O-O {[%emt 0:01:42]} 10. Nge2 {[%emt 0:00:01]} b6 {[%emt 0:01:34] [#]} (10... Nbd7 $16) 11. Be3 {[%emt 0:00:48]} ({White should try} 11. h4 $1 $18 {[%cal Rh4h5] Threatens to win with h5.} h6 12. g4) 11... h6 {[%emt 0:02:38]} (11... e5 $16) 12. Nf4 $36 {[%emt 0:00:33][%mdl 2048] White is on the roll.} Qh7 {[%emt 0:00:03]} 13. e5 {[%emt 0:01:47]} Nd5 {[%emt 0:01:06]} (13... Ne8 $16 14. Be4 g6) 14. Be4 {[%emt 0:00:05]} g6 {[%emt 0:05:53]} 15. Nfxd5 {[%emt 0:04:28]} exd5 {[%emt 0:03:13] [#]} 16. Nxd5 {[%emt 0:01:52][%mdl 512]} cxd5 {[%emt 0:00:45]} 17. Qxd5 {[%emt 0:00:02]} (17. Bxd5 Be6 $16) 17... Bb4+ {[%emt 0:02:16]} 18. Bd2 {[%emt 0:00:02]} Bxd2+ {[%emt 0:00:49]} 19. Kxd2 {[%emt 0:00:02]} Nc6 {[%emt 0:00:54]} 20. Qxc6 {[%emt 0:00:05]} Be6 {[%emt 0:01:01]} 21. Qa4 {[%emt 0:00:17]} (21. Qxa8 Rxa8 22. Bxa8 f6 $16) 21... Rad8 {[%emt 0:00:19]} 22. Ke3 {[%emt 0:00:48]} (22. Qxa7 $2 Rxd4+ 23. Ke2 (23. Ke3 $2 Rxe4+ {[%mdl 64] Remove Defender} 24. Kxe4 f5+ {[%mdl 64] Discovered Attack} 25. exf6 Qxa7 $19) 23... Rxe4+ 24. Kf1 Qg7 $19) (22. Rhd1 $16) 22... h5 $2 {[%emt 0:00:20]} (22... f6 $1 $14) 23. f4 {[%emt 0:00:01]} (23. Qxa7 $6 Qh6+ 24. f4 Rxd4) 23... Qh6 {[%emt 1:14:35]} 24. h4 {[%emt 1:27:01]} ({Don't take} 24. Qxa7 $6 Rxd4 25. Rhd1 (25. Kxd4 $2 Qxf4 26. Qe7 Qd2+ 27. Bd3 Qf2+ 28. Ke4 Bf5+ {[%mdl 64] Skewer, Deflection} 29. Kd5 Bxd3 $19) 25... Rb4 $16) 24... f6 {[%emt 0:00:00] Strongly threatening ...fxe5.} 25. g3 {[%emt 0:00:00]} (25. Qxa7 $2 fxe5 26. Raf1 Rxf4 $19) 25... g5 $2 {[%emt 0:00:00]} (25... Qg7 26. Qc6 Rfe8) 26. hxg5 {[%emt 0:00:00] White is clearly winning.} ({Worse is} 26. Qxa7 gxf4+ 27. gxf4 fxe5 $17) 26... fxg5 {[%emt 0:00:00]} 27. Raf1 {[%emt 0:00:00]} (27. Qxa7 $2 {perishes.} gxf4+ 28. Kd3 fxg3 $19) 27... Rf7 {[%emt 0:00:00]} 28. Qc6 {[%emt 0:00:00]} Re7 {[%emt 0:00:00]} 29. d5 {[%emt 0:00:00] Weighted Error Value: White=0.21 (precise) /Black=0.70} 1-0